bitfinex-derivatives/quotes_SOLF0:USTF0_20250606
["timestamp","ask_amount","ask_price","bid_price","bid_amount"]
[1749228623460,11.2440254,150.67,150.66,0.04639656]
[1749228623864,11.24237166,150.67,150.66,0.04639656]
[1749228624063,11.24212632,150.67,150.66,0.04639656]
[1749228624263,11.24138819,150.67,150.66,0.04639656]
[1749228624455,11.24133477,150.67,150.66,0.04639656]
[1749228625156,44.98133477,150.67,150.66,0.04639656]
[1749228625657,44.97287829,150.67,150.66,0.04639656]
[1749228626965,38.34097829,150.67,150.66,0.04639656]
[1749228627162,38.34016569,150.67,150.66,0.04639656]
[1749228627465,38.34037517,150.67,150.66,0.04639656]
[1749228627668,44.97217517,150.67,150.66,0.04639656]
[1749228627962,44.97238329,150.67,150.66,0.04639656]
[1749228628467,44.9731494,150.67,150.66,0.04639656]
[1749228628658,44.95706794,150.67,150.66,0.04639656]
[1749228628964,44.95729513,150.67,150.66,0.04639656]
[1749228629567,44.95715438,150.67,150.66,0.04639656]
[1749228630667,44.94650862,150.67,150.66,0.04639656]
[1749228630970,40.3718,150.67,150.66,0.04639656]
[1749228633069,33.74,150.67,150.66,0.04639656]
[1749228633663,38.31085929,150.67,150.66,0.04639656]
[1749228633860,38.30967378,150.67,150.66,0.04639656]
[1749228634573,38.30952159,150.67,150.66,0.04639656]
[1749228635362,33.74,150.67,150.66,0.04639656]
[1749228635566,38.31073867,150.67,150.66,0.04639656]
[1749228635771,44.94243867,150.67,150.66,0.04639656]
[1749228636073,40.3717,150.67,150.66,0.04639656]
[1749228636374,44.94141831,150.67,150.66,0.04639656]
[1749228636670,44.94154123,150.67,150.66,0.04639656]
[1749228636870,40.3717,150.67,150.66,0.04639656]
[1749228637273,48.55799762,150.67,150.66,0.04639656]
[1749228637473,6.6335,150.63,150.59,33.68]
[1749228637668,8.18629762,150.65,150.59,33.68]
[1749228637869,6.6344,150.61,150.57,6.4564]
[1749228638375,6.68172665,150.61,150.57,6.50609335]
[1749228638872,6.68172665,150.61,150.58,6.6355]
[1749228640176,6.6349,150.6,150.57,13.14209335]
[1749228640372,8.23362427,150.61,150.57,6.50609335]
[1749228640677,8.23362427,150.61,150.52,8.29583453]
[1749228640678,0.04732665,150.61,150.52,8.18629762]
[1749228640877,4.60331589,150.61,150.52,8.18629762]
[1749228641079,4.60331589,150.61,150.56,6.6362]
[1749228641080,6.6351,150.6,150.56,6.6362]
[1749228641379,8.23362427,150.61,150.56,6.6362]
[1749228641380,33.7,150.59,150.56,6.6362]
[1749228641570,33.7,150.59,150.56,6.6789704]
[1749228641770,40.3356,150.59,150.56,0.0427704]
[1749228643282,6.6358,150.58,150.56,0.0427704]
[1749228643674,33.7,150.59,150.56,6.6792704]
[1749228643881,33.7,150.59,150.56,0.0427704]
[1749228644268,33.7,150.59,150.56,6.6791704]
[1749228644876,33.7,150.59,150.57,6.6362]
[1749228645577,33.7,150.59,150.56,6.6792704]
[1749228645978,40.3356,150.59,150.56,6.6792704]
[1749228646173,33.7,150.59,150.57,6.6361]
[1749228646373,40.3357,150.59,150.56,0.0427704]
[1749228646978,40.3357,150.59,150.56,6.6791704]
[1749228647179,6.6358,150.58,150.56,0.0427704]
[1749228647478,33.7,150.59,150.56,0.0427704]
[1749228647679,40.3355,150.59,150.56,6.6790704]
[1749228648577,6.636,150.58,150.56,0.0427704]
[1749228648775,33.7,150.59,150.56,0.0427704]
[1749228648976,40.3355,150.59,150.56,6.6791704]
[1749228652380,6.6359,150.58,150.56,0.0427704]
[1749228652780,41.88629762,150.59,150.56,0.0427704]
[1749228652981,48.52169762,150.59,150.56,6.6793704]
[1749228653280,33.7,150.59,150.56,0.0427704]
[1749228653979,33.7,150.59,150.58,6.6357]
[1749228656284,6.68202665,150.61,150.58,6.6357]
[1749228657381,8.23362427,150.61,150.56,0.0427704]
[1749228657775,8.18629762,150.59,150.56,0.0427704]
[1749228657980,8.18629762,150.57,150.51,38.0205]
[1749228658783,8.18629762,150.57,150.51,4.3205]
[1749228659083,6.68246459,150.56,150.52,0.0497195]
[1749228659285,0.04556459,150.56,150.52,0.0497195]
[1749228659784,0.04556459,150.56,150.52,6.6877195]
[1749228660286,6.68256459,150.56,150.53,6.6379]
[1749228662980,6.6371,150.55,150.52,6.6879195]
[1749228663380,6.68236459,150.56,150.53,6.6379]
[1749228663775,0.04556459,150.56,150.54,6.6375]
[1749228663987,0.04556459,150.56,150.52,0.0497195]
[1749228664985,6.68246459,150.56,150.53,6.638]
[1749228665584,6.6371,150.55,150.52,6.6879195]
[1749228665981,0.04556459,150.56,150.52,0.0497195]
[1749228666281,8.18629762,150.55,150.52,0.0497195]
[1749228666883,6.6378,150.54,150.52,0.0497195]
[1749228667977,6.638,150.53,150.52,0.0497195]
[1749228668183,14.82429762,150.53,150.52,0.0497195]
[1749228670187,6.638,150.53,150.52,0.0497195]
[1749228672492,48.50389762,150.54,150.52,0.0497195]
[1749228672691,33.68,150.54,150.52,0.0497195]
[1749228673283,33.68,150.54,150.53,6.6379]
[1749228673589,0.04556459,150.56,150.52,0.0497195]
[1749228674086,8.23186221,150.56,150.52,0.0497195]
[1749228674894,6.6374,150.54,150.52,0.0497195]
[1749228675791,6.6379,150.53,150.52,0.0497195]
[1749228677484,40.3179,150.53,150.52,0.0497195]
[1749228679199,33.68,150.53,150.46,35.8077]
[1749228679496,8.18629762,150.52,150.48,6.6401]
[1749228679694,6.6391,150.51,150.48,6.6401]
[1749228680192,6.68310269,150.51,150.48,6.68639718]
[1749228685002,6.6392,150.5,150.48,6.68639718]
[1749228685504,6.6392,150.5,150.48,0.04629718]
[1749228685801,40.3196,150.49,150.48,0.04629718]
[1749228686097,8.18629762,150.48,150.44,6.6418]
[1749228686303,8.18629762,150.48,150.41,7.83582262]
[1749228687108,0.05038709,150.46,150.43,0.04403464]
[1749228687804,0.05038709,150.46,150.45,6.6414]
[1749228688000,33.68,150.49,150.45,8.18629762]
[1749228688204,33.68,150.49,150.43,0.04403464]
[1749228688205,33.64,150.52,150.47,8.18629762]
[1749228689204,0.0466467,150.51,150.48,0.04546774]
[1749228689605,6.6857467,150.51,150.48,6.68526774]
[1749228689997,0.0466467,150.51,150.48,6.68526774]
[1749228690194,6.6856467,150.51,150.48,6.68526774]
[1749228692404,6.6393,150.5,150.48,6.68526774]
[1749228692704,6.6855467,150.51,150.48,6.68526774]
[1749228694604,6.6394,150.5,150.48,6.68526774]
[1749228695303,6.6856467,150.51,150.48,6.68526774]
[1749228695906,0.0466467,150.51,150.49,6.6396]
[1749228696206,0.0466467,150.51,150.48,0.04546774]
[1749228696403,6.6392,150.5,150.48,6.68536774]
[1749228697706,6.6857467,150.51,150.49,6.6397]
[1749228698006,0.0466467,150.51,150.48,0.04546774]
[1749228698304,6.6856467,150.51,150.48,6.68516774]
[1749228698505,0.0466467,150.51,150.48,0.04546774]
[1749228698696,0.0466467,150.51,150.5,6.6392]
[1749228699405,0.0466467,150.51,150.49,6.6394]
[1749228700305,6.6856467,150.51,150.49,6.6394]
[1749228701507,0.0466467,150.51,150.5,6.6392]
[1749228701904,0.0466467,150.51,150.48,0.04546774]
[1749228702207,6.6854467,150.51,150.49,6.6394]
[1749228703504,0.0466467,150.51,150.5,6.6392]
[1749228705910,0.0466467,150.51,150.49,6.6394]
[1749228706107,6.6854467,150.51,150.49,6.6394]
[1749228706508,0.0466467,150.51,150.5,6.6392]
[1749228709812,6.6854467,150.51,150.49,6.6394]
[1749228710214,0.0466467,150.51,150.49,6.6394]
[1749228711614,6.6853467,150.51,150.49,6.6394]
[1749228712410,0.0466467,150.51,150.49,6.6394]
[1749228712614,0.0466467,150.51,150.5,6.6392]
[1749228716411,6.6395,150.5,150.48,0.04546774]
[1749228716916,6.6395,150.5,150.48,6.68536774]
[1749228717116,0.0466467,150.51,150.48,0.04546774]
[1749228717410,0.0466467,150.51,150.48,6.68556774]
[1749228717817,6.6394,150.5,150.48,6.68556774]
[1749228718216,6.6394,150.5,150.48,0.04546774]
[1749228718718,6.6396,150.49,150.48,0.04546774]
[1749228718919,8.23294432,150.51,150.48,0.04546774]
[1749228719521,6.6394,150.5,150.48,0.04546774]
[1749228720221,0.0466467,150.51,150.48,0.04546774]
[1749228720518,0.0466467,150.51,150.49,6.6394]
[1749228720719,6.6854467,150.51,150.49,6.6394]
[1749228721916,6.6854467,150.51,150.48,6.68546774]
[1749228722117,6.6394,150.5,150.48,0.04546774]
[1749228722517,0.0466467,150.51,150.48,6.68536774]
[1749228722717,6.6856467,150.51,150.48,6.68536774]
[1749228723824,6.6395,150.5,150.48,0.04546774]
[1749228725119,0.0466467,150.51,150.48,0.04546774]
[1749228725715,6.6392,150.5,150.48,0.04546774]
[1749228725927,8.18629762,150.49,150.48,0.04546774]
[1749228726122,6.6415,150.45,150.42,8.29583453]
[1749228726322,41.78629762,150.46,150.41,10.61883453]
[1749228726524,41.78629762,150.46,150.41,2.323]
[1749228726726,6.6418,150.45,150.41,8.9659]
[1749228727023,0.04291974,150.45,150.41,9.00803976]
[1749228727225,6.6421,150.44,150.41,9.00803976]
[1749228727615,8.22921736,150.45,150.42,6.6427]
[1749228727826,8.22921736,150.45,150.41,2.36513976]
[1749228728325,14.87091736,150.45,150.41,2.36513976]
[1749228728726,14.87091736,150.45,150.42,6.6426]
[1749228728926,6.6419,150.44,150.41,2.36513976]
[1749228729325,6.6419,150.44,150.41,9.00793976]
[1749228729526,14.87081736,150.45,150.41,2.36513976]
[1749228729926,14.87081736,150.45,150.42,6.6427]
[1749228730127,6.6419,150.44,150.42,6.6427]
[1749228730330,0.04291974,150.45,150.42,8.18629762]
[1749228730629,0.04291974,150.45,150.44,6.6419]
[1749228731925,40.2598,150.49,150.46,6.6407]
[1749228732328,6.6402,150.48,150.46,6.6407]
[1749228732721,0.04698596,150.49,150.46,6.6407]
[1749228733039,6.68688596,150.49,150.46,6.6407]
[1749228735335,6.6403,150.48,150.46,6.6407]
[1749228736236,6.68678596,150.49,150.46,6.6407]
[1749228737432,0.04698596,150.49,150.45,0.04805302]
[1749228737634,12.74080088,150.49,150.45,0.04805302]
[1749228738238,8.23328358,150.49,150.45,0.04805302]
[1749228738439,6.6406,150.47,150.45,0.04805302]
[1749228738829,6.6406,150.47,150.45,6.68935302]
[1749228739035,6.6403,150.48,150.45,6.68935302]
[1749228739730,6.6407,150.47,150.45,6.68935302]
[1749228739936,6.6407,150.47,150.45,0.04805302]
[1749228742234,6.641,150.46,150.45,0.04805302]
[1749228742745,40.261,150.46,150.45,0.04805302]
[1749228743236,44.76802096,150.46,150.45,0.04805302]
[1749228743636,44.76822323,150.46,150.45,0.04805302]
[1749228743834,6.643,150.42,150.39,2.2142]
[1749228744040,8.18629762,150.44,150.39,2.2142]
[1749228744241,6.6434,150.41,150.38,6.6443]
[1749228744742,6.69369532,150.41,150.38,6.68793314]
[1749228751250,6.6437,150.4,150.38,0.04363314]
[1749228751747,6.69369532,150.41,150.38,6.68813314]
[1749228754052,6.6441,150.39,150.38,0.04363314]
[1749228755756,14.83019762,150.4,150.38,0.04363314]
[1749228756255,8.18629762,150.4,150.38,0.04363314]
[1749228756647,6.6441,150.39,150.38,0.04363314]
[1749228766762,6.6467,150.34,150.21,399.37166907]
[1749228766962,6.6467,150.34,150.31,6.6474]
[1749228766963,14.83299762,150.34,150.31,6.6474]
[1749228767266,14.83269762,150.34,150.31,6.6474]
[1749228767562,8.18629762,150.34,150.3,8.8903]
[1749228767763,8.18629762,150.32,150.3,0.04301098]
[1749228768268,41.78629762,150.32,150.3,0.04301098]
[1749228768768,33.6,150.32,150.31,6.6476]
[1749228772660,48.48016087,150.34,150.32,6.6471]
[1749228773774,14.88016087,150.34,150.32,6.6471]
[1749228774070,48.48016087,150.34,150.32,6.6471]
[1749228774270,14.88016087,150.34,150.32,6.6471]
[1749228774462,48.48016087,150.34,150.31,6.6474]
[1749228774663,8.18629762,150.32,150.31,6.6474]
[1749228775271,8.18629762,150.32,150.3,6.69081098]
[1749228775969,14.83369762,150.32,150.3,0.04301098]
[1749228777267,6.6476,150.31,150.3,0.04301098]
[1749228779170,8.18629762,150.32,150.3,0.04301098]
[1749228779763,6.6476,150.31,150.3,0.04301098]
[1749228780367,6.6473,150.32,150.3,0.04301098]
[1749228780570,8.18629762,150.31,150.3,0.04301098]
[1749228781177,14.83389762,150.31,150.3,0.04301098]
[1749228781371,8.18629762,150.31,150.3,0.04301098]
[1749228781572,14.83389762,150.31,150.3,0.04301098]
[1749228785089,6.6476,150.31,150.3,0.04301098]
[1749228785380,14.83389762,150.31,150.3,0.04301098]
[1749228786270,6.6489,150.28,150.27,2.74723823]
[1749228786471,48.41519762,150.28,150.27,2.74723823]
[1749228790173,41.76629762,150.28,150.26,0.0495055]
[1749228790386,6.6494,150.27,150.26,0.0495055]
[1749228793184,41.76629762,150.28,150.18,4.4745]
[1749228793185,6.651,150.24,150.21,6.652]
[1749228793381,8.18629762,150.23,150.21,6.652]
[1749228794384,14.83759762,150.23,150.2,0.04904457]
[1749228794689,33.62670105,150.24,150.2,0.04904457]
[1749228794882,0.04670105,150.24,150.23,6.6511]
[1749228796184,0.04670105,150.24,150.22,6.6514]
[1749228796485,0.04670105,150.24,150.2,0.04904457]
[1749228796686,0.04670105,150.24,150.22,6.6512]
[1749228798192,0.04670105,150.24,150.2,0.04904457]
[1749228798777,0.04670105,150.24,150.2,8.23534219]
[1749228798982,0.04670105,150.24,150.21,2.2089]
[1749228800395,0.04670105,150.24,150.22,6.6513]
[1749228800787,0.04670105,150.24,150.21,2.2089]
[1749228801294,0.04670105,150.24,150.22,6.6516]
[1749228802095,0.04670105,150.24,150.23,6.6512]
[1749228805297,0.04670105,150.24,150.22,6.6514]
[1749228805601,0.04670105,150.24,150.21,2.2089]
[1749228805799,6.69770105,150.24,150.21,8.8607]
[1749228806002,0.04670105,150.24,150.21,2.2089]
[1749228806404,0.04670105,150.24,150.22,6.6514]
[1749228807597,0.04670105,150.24,150.23,6.6512]
[1749228808299,0.04670105,150.24,150.22,6.6514]
[1749228808707,0.04670105,150.24,150.21,2.2089]
[1749228808903,41.76629762,150.26,150.21,2.2089]
[1749228808904,33.58,150.26,150.21,2.2089]
[1749228809110,382.98,150.32,150.24,8.18629762]
[1749228809406,40.2278,150.31,150.24,8.18629762]
[1749228809597,8.18629762,150.3,150.24,8.18629762]
[1749228810106,8.18629762,150.28,150.25,0.04512783]
[1749228810508,6.6492,150.28,150.25,0.04512783]
[1749228810699,6.6492,150.28,150.25,6.69532783]
[1749228810905,0.04289707,150.29,150.25,6.69532783]
[1749228811102,6.649,150.28,150.25,6.69532783]
[1749228812108,6.6495,150.27,150.25,6.69532783]
[1749228812507,0.04289707,150.29,150.25,6.69532783]
[1749228812711,6.6491,150.28,150.25,6.69532783]
[1749228813214,6.6496,150.27,150.25,0.04512783]
[1749228813415,8.18629762,150.28,150.25,0.04512783]
[1749228813912,6.6498,150.26,150.25,0.04512783]
[1749228816010,6.6514,150.23,150.19,11.68720732]
[1749228816208,14.83769762,150.23,150.19,10.52890616]
[1749228817012,14.88695701,150.23,150.19,10.57158881]
[1749228817214,14.88695701,150.23,150.2,6.6522]
[1749228818019,6.6516,150.22,150.2,6.6522]
[1749228818414,48.54685701,150.23,150.2,6.6522]
[1749228818809,41.89555701,150.23,150.2,6.6522]
[1749228819017,6.6518,150.22,150.19,12.85888881]
[1749228819209,41.89555701,150.23,150.19,12.85888881]
[1749228819612,14.83819762,150.22,150.19,12.85888881]
[1749228819808,14.83819762,150.22,150.19,6.69548265]
[1749228820723,383.18925939,150.23,150.12,8.24168434]
[1749228821014,6.6535,150.18,150.14,6.655]
[1749228821219,8.24168434,150.19,150.13,2.2241]
[1749228821622,0.05017714,150.18,150.14,0.05095324]
[1749228822122,6.6539,150.17,150.14,0.05095324]
[1749228822323,33.71017714,150.18,150.14,0.05095324]
[1749228823024,6.6543,150.16,150.14,0.05095324]
[1749228823213,41.95186148,150.18,150.14,0.05095324]
[1749228824829,6.6547,150.15,150.14,0.05095324]
[1749228833130,14.89628434,150.16,150.14,0.05095324]
[1749228833430,8.24168434,150.16,150.14,0.05095324]
[1749228834024,14.89608434,150.16,150.14,0.05095324]
[1749228834633,14.89608434,150.16,150.14,6.70605324]
[1749228834835,0.05017714,150.18,150.14,0.05095324]
[1749228835232,8.24168434,150.21,150.19,6.6528]
[1749228835433,8.24168434,150.21,150.14,8.24168434]
[1749228835834,48.57358434,150.22,150.14,8.24168434]
[1749228836235,0.04365279,150.2,150.16,0.04993675]
[1749228836435,0.04365279,150.2,150.19,6.6527]
[1749228836934,0.04365279,150.2,150.18,6.6533]
[1749228840344,8.24168434,150.19,150.16,33.72993675]
[1749228841030,8.24168434,150.19,150.16,0.04993675]
[1749228841231,8.24168434,150.17,150.16,0.04993675]
[1749228841433,8.24168434,150.17,150.13,2.2241]
[1749228841937,8.24168434,150.19,150.15,6.6545]
[1749228842135,0.04365279,150.2,150.15,6.6545]
[1749228842338,8.24168434,150.19,150.15,6.6545]
[1749228842640,6.6536,150.18,150.15,6.69892877]
[1749228843237,8.24168434,150.17,150.15,0.04442877]
[1749228843644,14.89568434,150.17,150.15,0.04442877]
[1749228843942,8.24168434,150.18,150.15,0.04442877]
[1749228844145,6.6542,150.17,150.15,0.04442877]
[1749228844549,8.24168434,150.18,150.15,0.04442877]
[1749228844742,6.6543,150.16,150.15,0.04442877]
[1749228845544,0.04365279,150.2,150.15,0.04442877]
[1749228845941,8.24168434,150.19,150.15,0.04442877]
[1749228846150,6.6536,150.18,150.15,6.69902877]
[1749228846448,8.24168434,150.19,150.15,0.04442877]
[1749228846651,6.654,150.17,150.15,0.04442877]
[1749228847845,8.24168434,150.19,150.15,0.04442877]
[1749228848244,8.24168434,150.19,150.15,6.69902877]
[1749228848444,6.6538,150.17,150.15,0.04442877]
[1749228848747,8.24168434,150.19,150.15,6.69902877]
[1749228848954,6.6539,150.17,150.15,0.04442877]
[1749228850659,6.6539,150.17,150.15,6.69902877]
[1749228851454,6.6539,150.17,150.15,0.04442877]
[1749228852657,8.24168434,150.19,150.15,0.04442877]
[1749228853046,6.6541,150.17,150.15,6.69912877]
[1749228854155,6.6542,150.16,150.15,0.04442877]
[1749228856158,6.6556,150.14,150.1,34.02]
[1749228856453,8.24168434,150.15,150.1,34.02]
[1749228856958,6.6557,150.13,150.1,40.6767]
[1749228857153,6.70146622,150.13,150.1,40.7264834]
[1749228857856,0.04576622,150.13,150.11,6.6564]
[1749228858157,0.04576622,150.13,150.1,34.0697834]
[1749228858559,6.70136622,150.13,150.1,40.7264834]
[1749228858759,6.70136622,150.13,150.1,6.7064834]
[1749228859154,6.6562,150.12,150.1,0.0497834]
[1749228860049,6.70156622,150.13,150.1,6.7064834]
[1749228861560,6.6561,150.12,150.1,6.7064834]
[1749228862059,0.04576622,150.13,150.1,6.7064834]
[1749228862261,8.24168434,150.11,150.1,0.0497834]
[1749228862561,8.24168434,150.12,150.1,0.0497834]
[1749228863059,6.6565,150.11,150.1,0.0497834]
[1749228863256,0.04576622,150.13,150.1,0.0497834]
[1749228863455,8.28745056,150.13,150.1,0.0497834]
[1749228863661,6.6563,150.12,150.1,0.0497834]
[1749228866465,8.28745056,150.13,150.1,0.0497834]
[1749228866871,14.94325056,150.13,150.1,6.7064834]
[1749228867065,8.28745056,150.13,150.1,0.0497834]
[1749228867570,6.656,150.12,150.1,0.0497834]
[1749228869664,0.04576622,150.13,150.1,0.0497834]
[1749228870368,0.04576622,150.13,150.11,6.6562]
[1749228871466,6.70136622,150.13,150.1,6.7064834]
[1749228872864,0.04576622,150.13,150.1,0.0497834]
[1749228873373,6.70126622,150.13,150.1,6.7061834]
[1749228874367,0.04576622,150.13,150.11,6.6564]
[1749228874670,0.04576622,150.13,150.1,8.29146774]
[1749228875565,0.04576622,150.13,150.12,6.656]
[1749228876167,0.04576622,150.13,150.11,6.6563]
[1749228877864,0.04576622,150.13,150.12,6.656]
[1749228878066,0.04576622,150.13,150.1,0.0497834]
[1749228878572,0.04576622,150.13,150.11,6.6562]
[1749228879072,0.04576622,150.13,150.12,6.656]
[1749228879367,0.04576622,150.13,150.1,0.0497834]
[1749228879770,0.04576622,150.13,150.11,6.6562]
[1749228882366,0.04576622,150.13,150.12,6.656]
[1749228885976,6.655,150.15,150.11,42.24168434]
[1749228886179,42.24168434,150.17,150.11,42.24168434]
[1749228886364,42.24168434,150.17,150.11,40.6563]
[1749228886568,6.6554,150.14,150.11,34.0]
[1749228886768,6.70067378,150.14,150.11,34.0]
[1749228887376,6.70067378,150.14,150.11,40.6563]
[1749228887874,0.04527378,150.14,150.11,40.6563]
[1749228888477,6.70057378,150.14,150.11,40.6563]
[1749228888873,6.70057378,150.14,150.12,6.6559]
[1749228889477,6.70057378,150.14,150.11,40.6561]
[1749228889978,6.70057378,150.14,150.12,6.6559]
[1749228890476,6.70057378,150.14,150.11,34.0]
[1749228891381,6.70057378,150.14,150.11,40.6561]
[1749228893682,6.70057378,150.14,150.12,6.656]
[1749228894381,0.04527378,150.14,150.13,6.6555]
[1749228894588,0.04527378,150.14,150.11,34.0]
[1749228894781,0.04527378,150.14,150.11,42.24168434]
[1749228895287,0.04527378,150.14,150.12,6.6557]
[1749228896689,6.70047378,150.14,150.12,6.6557]
[1749228896888,0.04527378,150.14,150.12,6.6557]
[1749228898491,6.70037378,150.14,150.11,6.6562]
[1749228898690,6.70037378,150.14,150.1,8.29146774]
[1749228898988,6.70037378,150.14,150.11,6.6562]
[1749228900797,6.6559,150.13,150.1,0.0497834]
[1749228901092,0.04527378,150.14,150.1,0.0497834]
[1749228901494,6.70057378,150.14,150.11,6.6562]
[1749228904094,0.04527378,150.14,150.11,6.6562]
[1749228904588,6.70057378,150.14,150.11,6.6562]
[1749228904795,0.04527378,150.14,150.11,8.24168434]
[1749228905191,0.04527378,150.14,150.13,6.6555]
[1749228905396,0.04527378,150.14,150.1,0.0497834]
[1749228905791,6.70067378,150.14,150.11,6.6561]
[1749228906299,0.04527378,150.14,150.1,6.7063834]
[1749228906787,6.6558,150.13,150.1,6.7063834]
[1749228908201,6.70057378,150.14,150.11,6.6564]
[1749228908800,0.04527378,150.14,150.11,6.6564]
[1749228908990,6.6556,150.13,150.1,6.7063834]
[1749228911402,0.04527378,150.14,150.1,6.7063834]
[1749228911403,6.656,150.12,150.1,6.7063834]
[1749228911798,0.04527378,150.14,150.1,6.7063834]
[1749228911996,6.6558,150.13,150.1,6.7063834]
[1749228912195,0.04527378,150.14,150.1,0.0497834]
[1749228912605,6.6563,150.12,150.1,0.0497834]
[1749228912802,6.6563,150.12,150.1,6.7065834]
[1749228914413,6.6563,150.12,150.1,0.0497834]
[1749228916707,11.93398466,150.13,150.1,6.7063834]
[1749228916907,5.27828466,150.13,150.1,6.7063834]
[1749228917114,5.27828466,150.13,150.1,11.98466806]
[1749228917307,5.27828466,150.13,150.1,5.32806806]
[1749228917512,6.6563,150.12,150.1,5.32806806]
[1749228918212,6.6563,150.12,150.1,0.0497834]
[1749228918915,6.6563,150.12,150.1,6.7065834]
[1749228919119,11.93458466,150.12,150.1,6.7065834]
[1749228919504,6.6563,150.12,150.1,6.7065834]
[1749228919905,6.6563,150.12,150.1,0.0497834]
[1749228920510,11.93458466,150.12,150.1,0.0497834]
[1749228920814,6.6564,150.11,150.1,0.0497834]
[1749228921011,11.93468466,150.11,150.1,0.0497834]
[1749228921412,11.93468466,150.12,150.1,0.0497834]
[1749228921716,5.27828466,150.12,150.1,0.0497834]
[1749228921909,6.6564,150.11,150.1,0.0497834]
[1749228922813,11.93468466,150.11,150.1,0.0497834]
[1749228923007,11.93828466,150.11,150.04,6.22813094]
[1749228923218,11.93828466,150.11,150.02,2.74723823]
[1749228923219,5.27828466,150.05,150.02,2.74723823]
[1749228923513,33.88,150.06,149.96,8.29583453]
[1749228923705,33.88,150.06,149.89,13.332]
[1749228923706,5.27828466,149.97,149.91,8.29583453]
[1749228923907,5.27828466,149.94,149.93,0.04571112]
[1749228924105,0.05027499,149.95,149.93,0.04571112]
[1749228924315,5.27828466,149.94,149.93,0.04571112]
[1749228924510,6.664,149.94,149.93,0.04571112]
[1749228924716,5.32855965,149.95,149.93,0.04571112]
[1749228925310,0.05027499,149.95,149.93,0.04571112]
[1749228925509,0.05027499,149.95,149.84,42.17583453]
[1749228925714,41.11328459,149.98,149.9,8.39396165]
[1749228926013,7.23328459,149.96,149.9,33.88]
[1749228926213,33.88,149.99,149.9,33.88]
[1749228926411,0.04942348,149.96,149.93,0.04271874]
[1749228926614,7.23328459,149.95,149.93,0.04271874]
[1749228926915,6.664,149.94,149.93,0.04271874]
[1749228927425,13.89728459,149.94,149.93,0.04271874]
[1749228928018,14.46656918,149.94,149.85,2.3093]
[1749228928218,14.46656918,149.94,149.81,4.4511]
[1749228928219,7.23328459,149.87,149.81,4.4511]
[1749228928423,13.90048459,149.87,149.81,4.4511]
[1749228928918,0.04360932,149.85,149.81,4.4511]
[1749228929113,0.04360932,149.85,149.8,35.06135491]
[1749228929317,0.04360932,149.85,149.8,33.9]
[1749228929516,0.04360932,149.85,149.81,7.23328459]
[1749228929720,33.9,149.9,149.83,7.23328459]
[1749228929921,41.13328459,149.9,149.83,7.23328459]
[1749228930320,7.23328459,149.88,149.85,6.6676]
[1749228930721,7.28246111,149.88,149.85,6.7177128]
[1749228930921,7.28246111,149.88,149.85,0.0501128]
[1749228931114,0.04917652,149.88,149.85,0.0501128]
[1749228931621,7.23328459,149.87,149.85,0.0501128]
[1749228931815,0.04917652,149.88,149.85,0.0501128]
[1749228932021,7.28246111,149.88,149.85,0.0501128]
[1749228932412,13.94916111,149.88,149.85,0.0501128]
[1749228932617,0.04917652,149.88,149.85,0.0501128]
[1749228932817,0.04917652,149.88,149.86,6.6675]
[1749228933120,0.04917652,149.88,149.85,0.0501128]
[1749228933719,0.04917652,149.88,149.86,7.23328459]
[1749228934123,0.04917652,149.88,149.87,6.6671]
[1749228934723,34.72,149.92,149.89,6.6662]
[1749228934923,7.23328459,149.94,149.88,7.23328459]
[1749228935226,7.23328459,149.94,149.88,13.89988459]
[1749228935524,7.23328459,149.94,149.88,7.23328459]
[1749228935825,0.0501284,149.92,149.9,0.05127311]
[1749228936926,0.0501284,149.92,149.9,6.71667311]
[1749228937329,0.0501284,149.92,149.9,7.2845577]
[1749228937629,0.0501284,149.92,149.91,6.6653]
[1749228938924,0.0501284,149.92,149.9,13.9502577]
[1749228939724,0.0501284,149.92,149.91,6.6653]
[1749228940323,0.0501284,149.92,149.9,13.9501577]
[1749228941326,0.0501284,149.92,149.9,0.05127311]
[1749228942526,0.0501284,149.92,149.91,6.6653]
[1749228942724,0.0501284,149.92,149.91,13.89858459]
[1749228943323,34.72,149.98,149.91,7.23328459]
[1749228943527,34.72,149.98,149.94,7.23328459]
[1749228943730,41.3825,149.98,149.94,7.23328459]
[1749228944229,41.3825,149.98,149.95,0.04738385]
[1749228944429,0.04500578,149.97,149.95,6.71078385]
[1749228945732,0.04500578,149.97,149.96,6.6631]
[1749228946233,0.04500578,149.97,149.95,6.71078385]
[1749228947425,0.04500578,149.97,149.95,0.04738385]